[Event "SUNWAY"]
[Date "2016.12.17"]
[Round "3.1"]
[White "Sasikiran, Krishnan"]
[Black "Dobrov, Vladimir"]
[Result "1-0"]
[WhiteElo "2661"]
[BlackElo "2499"]
[ECO "B12"]
[WhiteFed "IND"]
[BlackFed "RUS"]
[FCGameId "1539772208"]
[TimeControl "5400+30"]

1. e4 {[%clk 1:28:40]} c6 {[%clk 1:25:48]} 2. d4 {[%clk 1:28:50]} d5  {[%clk 1:26:12]} 3. e5 {[%clk 1:29:05]} Bf5 {[%clk 1:26:35]} 4. Nf3  {[%clk 1:29:10]} e6 {[%clk 1:26:59]} 5. Be2 {[%clk 1:29:29]} Nd7  {[%clk 1:27:23]} 6. O-O {[%clk 1:27:02]} f6 {[%clk 1:27:19]} 7. c4  {[%clk 1:21:39]} fxe5 {[%clk 1:27:15]} 8. cxd5 {[%clk 1:15:19]} cxd5  {[%clk 1:25:42]} 9. Bb5 {[%clk 1:06:07]} Bg4 {[%clk 1:19:08]} 10. dxe5  {[%clk 1:01:14]} Bc5 {[%clk 1:11:33]} 11. Nc3 {[%clk 0:55:36]} Ne7  {[%clk 1:02:14]} 12. Na4 {[%clk 0:54:00]} b6 {[%clk 0:57:02]} 13. b4  {[%clk 0:52:56]} Bxb4 {[%clk 0:54:39]} 14. Qd4 {[%clk 0:51:27]} Bxf3  {[%clk 0:55:01]} 15. Qxb4 {[%clk 0:51:19]} Bh5 {[%clk 0:32:33]} 16. Ba3  {[%clk 0:48:10]} Ng6 {[%clk 0:27:45]} 17. Rac1 {[%clk 0:42:49]} Kf7  {[%clk 0:24:19]} 18. f4 {[%clk 0:39:59]} Kg8 {[%clk 0:16:36]} 19. f5  {[%clk 0:36:02]} Ngxe5 {[%clk 0:12:18]} 20. fxe6 {[%clk 0:34:58]} Nc5  {[%clk 0:09:07]} 21. Nxc5 {[%clk 0:28:14]} bxc5 {[%clk 0:09:30]} 22. Qf4  {[%clk 0:28:36]} Qf6 {[%clk 0:08:41]} 23. Qg3 {[%clk 0:28:50]} 1-0

[Event "SUNWAY"]
[Date "2016.12.17"]
[Round "3.2"]
[White "Krysa, Leandro"]
[Black "Ivanisevic, Ivan"]
[Result "1/2-1/2"]
[WhiteElo "2491"]
[BlackElo "2648"]
[ECO "A58"]
[WhiteFed "ARG"]
[BlackFed "SRB"]
[FCGameId "-1603973696"]
[TimeControl "5400+30"]

1. d4 Nf6 {[%clk 1:28:14]} 2. c4 {[%clk 1:31:14]} c5 {[%clk 1:24:10]} 3. d5  {[%clk 1:31:12]} b5 {[%clk 1:24:35]} 4. cxb5 {[%clk 1:31:22]} a6  {[%clk 1:24:58]} 5. bxa6 {[%clk 1:31:39]} g6 {[%clk 1:25:23]} 6. g3  {[%clk 1:29:09]} Bg7 {[%clk 1:25:36]} 7. Bg2 {[%clk 1:28:42]} d6  {[%clk 1:26:00]} 8. Nf3 {[%clk 1:28:09]} O-O {[%clk 1:25:22]} 9. Nc3  {[%clk 1:27:47]} Nbd7 {[%clk 1:25:46]} 10. O-O {[%clk 1:24:01]} Nb6  {[%clk 1:26:05]} 11. Re1 {[%clk 1:22:59]} Bxa6 {[%clk 1:26:05]} 12. Rb1  {[%clk 1:22:36]} Bc4 {[%clk 1:23:23]} 13. e4 {[%clk 1:22:55]} Bxa2  {[%clk 1:21:04]} 14. Nxa2 {[%clk 1:23:16]} Rxa2 {[%clk 1:21:29]} 15. b4  {[%clk 1:22:46]} c4 {[%clk 1:19:24]} 16. Nd4 {[%clk 1:13:11]} Na4  {[%clk 1:15:42]} 17. Nc6 {[%clk 0:56:18]} Qd7 {[%clk 1:14:47]} 18. Qf3  {[%clk 0:54:46]} Ng4 {[%clk 1:09:21]} 19. Bh3 {[%clk 0:47:46]} Ne5  {[%clk 0:55:30]} 20. Nxe5 {[%clk 0:38:46]} Qxh3 {[%clk 0:55:44]} 21. Nxc4  {[%clk 0:36:48]} f5 {[%clk 0:55:00]} 22. e5 {[%clk 0:14:09]} f4 {[%clk 0:54:32]}  23. Rb3 {[%clk 0:11:17]} fxg3 {[%clk 0:17:05]} 24. Qxg3 {[%clk 0:11:32]} Qc8  {[%clk 0:17:13]} 25. exd6 {[%clk 0:09:55]} Qxc4 {[%clk 0:16:28]} 26. dxe7  {[%clk 0:10:11]} Re8 {[%clk 0:16:53]} 27. Qd6 {[%clk 0:05:56]} Nc3  {[%clk 0:13:49]} 28. Qe6+ {[%clk 0:04:46]} Kh8 {[%clk 0:14:15]} 29. d6  {[%clk 0:04:41]} Ne2+ {[%clk 0:09:54]} 30. Rxe2 {[%clk 0:04:50]} Qxc1+  {[%clk 0:10:14]} 31. Re1 {[%clk 0:03:00]} Qf4 {[%clk 0:07:57]} 32. Rf3  {[%clk 0:02:31]} Qxf3 {[%clk 0:07:29]} 33. Qxa2 {[%clk 0:02:58]} Qg4+  {[%clk 0:04:14]} 34. Kh1 {[%clk 0:03:19]} Qf3+ {[%clk 0:04:00]} 35. Kg1  {[%clk 0:03:46]} Qg4+ {[%clk 0:02:40]} 36. Kh1 {[%clk 0:04:13]} Qf3+ 1/2-1/2

[Event "SUNWAY"]
[Date "2016.12.17"]
[Round "3.3"]
[White "Granda Zuniga, Julio E"]
[Black "Liang, Awonder"]
[Result "1-0"]
[WhiteElo "2646"]
[BlackElo "2495"]
[ECO "A29"]
[WhiteFed "PER"]
[BlackFed "USA"]
[FCGameId "-719650973"]
[TimeControl "5400+30"]

1. c4 e5 2. Nc3 Nf6 3. Nf3 Nc6 4. g3 Nd4 5. Bg2 Nxf3+ 6. Bxf3 Bb4 7. Qb3 Bd6 8.  O-O O-O 9. Rd1 c6 10. d4 exd4 11. Rxd4 Be5 12. Rd1 d6 13. Qc2 Qd7 14. Bg5 Qe6  15. b3 Ng4 16. Rac1 Re8 17. Qd2 Qg6 18. Bg2 h6 19. Bf4 Qh5 20. h4 Nf6 21. f3 Be6  22. e4 Qg6 23. g4 Nh7 24. Be3 Rad8 25. Ne2 d5 26. cxd5 cxd5 27. Bf4 dxe4 28.  Qxd8 Rxd8 29. Rxd8+ Nf8 30. Bxe5 exf3 31. Bxf3 Bxg4 32. Bxg4 Qxg4+ 33. Ng3 f6  34. Rc4 Qf3 35. Bd6 Kh7 36. Rxf8 Qd1+ 37. Kh2 Qxd6 38. Rf7 Qd2+ 39. Kh3 f5 40.  Rcc7 1-0

[Event "SUNWAY"]
[Date "2016.12.17"]
[Round "3.4"]
[White "Santos Ruiz, Miguel"]
[Black "Romanov, Evgeny"]
[Result "1/2-1/2"]
[WhiteElo "2484"]
[BlackElo "2622"]
[ECO "C68"]
[WhiteFed "ESP"]
[BlackFed "RUS"]
[FCGameId "-424659205"]
[TimeControl "5400+30"]

1. e4 {[%clk 1:30:56]} e5 {[%clk 1:26:10]} 2. Nf3 {[%clk 1:31:14]} Nc6  {[%clk 1:26:35]} 3. Bb5 {[%clk 1:31:39]} a6 {[%clk 1:26:59]} 4. Bxc6  {[%clk 1:32:03]} dxc6 {[%clk 1:27:22]} 5. O-O {[%clk 1:32:29]} Qe7  {[%clk 1:25:58]} 6. d4 {[%clk 1:31:46]} exd4 {[%clk 1:25:48]} 7. Qxd4  {[%clk 1:32:06]} Bg4 {[%clk 1:25:45]} 8. Bf4 {[%clk 1:32:21]} Bxf3  {[%clk 1:18:10]} 9. gxf3 {[%clk 1:32:24]} Nf6 {[%clk 1:18:05]} 10. Nc3  {[%clk 1:31:11]} Nh5 {[%clk 1:14:30]} 11. Bg3 {[%clk 1:26:17]} Nxg3  {[%clk 1:10:40]} 12. hxg3 {[%clk 1:26:37]} Qc5 {[%clk 1:10:52]} 13. Rad1  {[%clk 1:22:27]} Qxd4 {[%clk 1:07:32]} 14. Rxd4 {[%clk 1:22:40]} Bc5  {[%clk 1:07:56]} 15. Rd3 {[%clk 1:22:42]} Rd8 {[%clk 1:08:19]} 16. Rxd8+  {[%clk 1:12:17]} Kxd8 {[%clk 1:08:11]} 17. f4 {[%clk 1:12:35]} Ke7  {[%clk 1:06:32]} 18. Rd1 {[%clk 1:12:37]} h5 19. Kg2 {[%clk 1:07:16]} g6  {[%clk 1:00:49]} 20. e5 {[%clk 0:48:31]} Ke6 {[%clk 0:59:43]} 21. Ne4  {[%clk 0:48:51]} Be7 {[%clk 1:00:06]} 22. Kf3 {[%clk 0:49:11]} b5  {[%clk 0:55:02]} 23. Rc1 {[%clk 0:36:21]} a5 {[%clk 0:39:05]} 24. c4  {[%clk 0:35:30]} Kd7 {[%clk 0:38:58]} 25. Rd1+ {[%clk 0:35:18]} Ke6  {[%clk 0:39:20]} 26. Rc1 {[%clk 0:35:43]} Kd7 {[%clk 0:39:45]} 27. Rd1+  {[%clk 0:36:10]} Ke6 {[%clk 0:39:48]} 1/2-1/2

[Event "SUNWAY"]
[Date "2016.12.17"]
[Round "3.5"]
[White "Postny, Evgeny"]
[Black "Anurag, Mhamal"]
[Result "1-0"]
[WhiteElo "2620"]
[BlackElo "2423"]
[ECO "D10"]
[WhiteFed "ISR"]
[BlackFed "IND"]
[FCGameId "-356732604"]
[TimeControl "5400+30"]

1. d4 {[%clk 1:30:57]} d5 {[%clk 1:14:59]} 2. c4 {[%clk 1:31:19]} c6  {[%clk 1:15:26]} 3. Nc3 {[%clk 1:31:36]} Nf6 {[%clk 1:15:51]} 4. cxd5  {[%clk 1:31:47]} cxd5 {[%clk 1:16:18]} 5. Bf4 {[%clk 1:32:13]} Nc6  {[%clk 1:13:43]} 6. e3 {[%clk 1:32:36]} a6 {[%clk 1:14:10]} 7. Rc1  {[%clk 1:30:43]} Bg4 {[%clk 1:13:49]} 8. f3 {[%clk 1:28:04]} Bd7  {[%clk 1:14:14]} 9. Bd3 {[%clk 1:27:40]} e6 {[%clk 1:01:18]} 10. Bg5 h6  {[%clk 0:55:11]} 11. Bh4 {[%clk 1:26:05]} Be7 {[%clk 0:43:50]} 12. f4  {[%clk 1:24:16]} Qb6 {[%clk 0:43:01]} 13. Qe2 {[%clk 1:17:10]} g5  {[%clk 0:42:33]} 14. fxg5 {[%clk 1:13:04]} Ne4 {[%clk 0:39:12]} 15. Bxe4  {[%clk 1:00:43]} dxe4 {[%clk 0:35:33]} 16. Nh3 {[%clk 1:01:08]} e5  {[%clk 0:17:32]} 17. O-O {[%clk 0:52:07]} Bxh3 {[%clk 0:17:57]} 18. gxh3  {[%clk 0:50:44]} exd4 {[%clk 0:18:05]} 19. Nd5 {[%clk 0:35:21]} Qd8  {[%clk 0:17:52]} 20. Rf5 {[%clk 0:35:37]} hxg5 {[%clk 0:16:13]} 21. Bg3  {[%clk 0:36:00]} Rc8 {[%clk 0:14:22]} 22. Rcf1 {[%clk 0:35:17]} Rh6  {[%clk 0:13:05]} 23. Qg4 {[%clk 0:30:20]} dxe3 {[%clk 0:08:22]} 24. Nxe7  {[%clk 0:26:14]} Qxe7 {[%clk 0:05:41]} 25. Rxf7 {[%clk 0:25:09]} Qe6  {[%clk 0:06:02]} 26. Rf8+ {[%clk 0:25:30]} 1-0

[Event "SUNWAY"]
[Date "2016.12.17"]
[Round "3.6"]
[White "Minko, Vladimir"]
[Black "Edouard, Romain"]
[Result "1/2-1/2"]
[WhiteElo "2429"]
[BlackElo "2611"]
[ECO "D20"]
[WhiteFed "RUS"]
[BlackFed "FRA"]
[FCGameId "1907891944"]
[TimeControl "5400+30"]

1. d4 {[%clk 1:24:14]} d5 {[%clk 1:30:45]} 2. c4 {[%clk 1:24:35]} dxc4  {[%clk 1:31:11]} 3. e3 {[%clk 1:24:51]} e5 {[%clk 1:30:50]} 4. Bxc4  {[%clk 1:21:28]} Nc6 {[%clk 1:30:57]} 5. Nf3 {[%clk 1:17:50]} e4  {[%clk 1:30:59]} 6. Nfd2 {[%clk 1:16:41]} Qg5 {[%clk 1:24:31]} 7. Nxe4  {[%clk 1:16:53]} Qxg2 {[%clk 1:24:52]} 8. Ng3 {[%clk 1:17:18]} Nf6  {[%clk 1:19:54]} 9. Bf1 {[%clk 1:13:21]} Qd5 {[%clk 1:20:21]} 10. Nc3  {[%clk 1:13:40]} Bb4 {[%clk 1:20:16]} 11. Bd2 {[%clk 1:12:56]} Qe6  {[%clk 1:13:49]} 12. Qe2 {[%clk 1:10:23]} h5 {[%clk 1:11:07]} 13. h4  {[%clk 1:08:31]} Qe7 {[%clk 1:10:05]} 14. Bh3 {[%clk 0:58:41]} Bxh3  {[%clk 1:04:17]} 15. Rxh3 {[%clk 0:59:05]} Qe6 {[%clk 0:47:45]} 16. Rh1  {[%clk 0:54:39]} O-O-O {[%clk 0:48:09]} 17. a3 {[%clk 0:53:24]} Bd6  {[%clk 0:47:06]} 18. Rg1 {[%clk 0:53:12]} Rhe8 {[%clk 0:44:19]} 19. O-O-O  {[%clk 0:50:12]} g6 {[%clk 0:44:35]} 20. Qb5 {[%clk 0:48:53]} a6  {[%clk 0:40:35]} 21. Qa4 {[%clk 0:49:16]} Ne7 {[%clk 0:34:10]} 22. e4  {[%clk 0:47:11]} Bxg3 {[%clk 0:31:08]} 23. d5 {[%clk 0:47:05]} Qb6  {[%clk 0:21:42]} 24. fxg3 {[%clk 0:45:13]} Ng4 {[%clk 0:21:07]} 25. Rge1  {[%clk 0:44:06]} f6 {[%clk 0:18:46]} 26. Bf4 {[%clk 0:42:37]} Rg8  {[%clk 0:15:12]} 27. Qc4 {[%clk 0:38:32]} Ne5 {[%clk 0:14:13]} 28. Bxe5  {[%clk 0:37:29]} fxe5 {[%clk 0:14:40]} 29. Na4 {[%clk 0:37:28]} Qb5  {[%clk 0:12:58]} 30. Qxb5 {[%clk 0:37:21]} axb5 {[%clk 0:13:27]} 31. Nc5  {[%clk 0:37:44]} Rd6 {[%clk 0:12:54]} 32. Nd3 {[%clk 0:31:27]} 1/2-1/2

[Event "SUNWAY"]
[Date "2016.12.17"]
[Round "3.7"]
[White "Lauber, Arnd"]
[Black "Zubov, Alexander"]
[Result "1/2-1/2"]
[WhiteElo "2421"]
[BlackElo "2606"]
[ECO "D92"]
[WhiteFed "GER"]
[BlackFed "UKR"]
[FCGameId "-998825599"]
[TimeControl "5400+30"]

1. d4 {[%clk 1:30:42]} Nf6 {[%clk 1:30:53]} 2. c4 {[%clk 1:31:01]} g6  {[%clk 1:31:18]} 3. Nc3 {[%clk 1:31:16]} d5 {[%clk 1:31:42]} 4. Nf3  {[%clk 1:28:15]} Bg7 {[%clk 1:32:02]} 5. Bf4 {[%clk 1:28:31]} O-O  {[%clk 1:31:19]} 6. Rc1 dxc4 {[%clk 1:25:58]} 7. e3 {[%clk 1:26:04]} c5 8. dxc5  {[%clk 1:21:04]} Qa5 {[%clk 1:26:01]} 9. Bxc4 {[%clk 1:20:47]} Qxc5  {[%clk 1:26:01]} 10. Bb3 Nc6 {[%clk 1:26:07]} 11. O-O {[%clk 1:15:15]} Qa5  {[%clk 1:19:43]} 12. h3 {[%clk 1:06:55]} Bf5 13. Qe2 Ne4 {[%clk 1:19:48]} 14.  Nxe4 {[%clk 1:05:46]} Bxe4 {[%clk 1:20:10]} 15. Rfd1 {[%clk 0:43:00]} e6  {[%clk 0:52:02]} 16. Rd7 Ne5 17. Nxe5 {[%clk 0:42:51]} Bxe5 {[%clk 0:52:29]} 18.  Bxe5 {[%clk 0:43:14]} Qxe5 {[%clk 0:52:31]} 19. Rd4 {[%clk 0:42:41]} Bc6  {[%clk 0:48:44]} 20. Rcd1 Rac8 1/2-1/2

[Event "SUNWAY"]
[Date "2016.12.17"]
[Round "3.8"]
[White "Van Foreest, Jorden"]
[Black "Collas, Didier"]
[Result "1-0"]
[WhiteElo "2605"]
[BlackElo "2399"]
[ECO "B33"]
[WhiteFed "NED"]
[BlackFed "FRA"]
[FCGameId "265970125"]
[TimeControl "5400+30"]

1. e4 {[%clk 1:29:25]} c5 {[%clk 1:30:56]} 2. Nc3 {[%clk 1:29:39]} Nc6  {[%clk 1:26:24]} 3. Nge2 {[%clk 1:30:02]} Nf6 {[%clk 1:26:07]} 4. d4  {[%clk 1:30:27]} cxd4 {[%clk 1:26:33]} 5. Nxd4 {[%clk 1:30:53]} e5  {[%clk 1:26:42]} 6. Ndb5 {[%clk 1:30:51]} d6 {[%clk 1:27:06]} 7. Bg5  {[%clk 1:31:01]} a6 {[%clk 1:27:31]} 8. Na3 {[%clk 1:28:54]} b5 {[%clk 1:27:57]}  9. Nd5 {[%clk 1:29:19]} Be7 {[%clk 1:28:19]} 10. Bxf6 {[%clk 1:29:44]} Bxf6  {[%clk 1:28:46]} 11. c4 {[%clk 1:30:00]} b4 {[%clk 1:28:10]} 12. Nc2  {[%clk 1:30:28]} a5 {[%clk 1:28:16]} 13. g3 {[%clk 1:30:55]} O-O  {[%clk 1:27:37]} 14. h4 {[%clk 1:31:19]} Be6 {[%clk 1:23:19]} 15. Bh3  {[%clk 1:31:42]} Rb8 {[%clk 1:14:51]} 16. b3 {[%clk 1:28:55]} Qd7  {[%clk 1:12:36]} 17. Nxf6+ {[%clk 1:27:45]} gxf6 {[%clk 1:11:59]} 18. Bg2  {[%clk 1:24:03]} f5 {[%clk 1:06:03]} 19. Qh5 {[%clk 1:09:26]} f6  {[%clk 1:03:13]} 20. exf5 {[%clk 1:09:05]} Bxf5 {[%clk 1:03:34]} 21. Ne3  {[%clk 1:09:31]} Nd4 {[%clk 1:01:12]} 22. Nxf5 {[%clk 0:58:46]} Qxf5  {[%clk 1:01:32]} 23. Qxf5 {[%clk 0:58:59]} Nxf5 {[%clk 1:02:01]} 24. O-O-O  {[%clk 0:52:54]} Nd4 {[%clk 1:02:06]} 25. Rhe1 {[%clk 0:53:14]} Rfe8  {[%clk 0:47:57]} 26. Kb2 {[%clk 0:53:17]} Kf8 {[%clk 0:48:23]} 27. Bd5  {[%clk 0:49:49]} Re7 {[%clk 0:47:23]} 28. Rd3 {[%clk 0:47:10]} Ra7  {[%clk 0:44:02]} 29. f4 {[%clk 0:42:00]} Rc8 {[%clk 0:39:00]} 30. g4  {[%clk 0:42:07]} h6 {[%clk 0:39:07]} 31. g5 {[%clk 0:41:38]} hxg5  {[%clk 0:39:09]} 32. hxg5 {[%clk 0:42:03]} Kg7 {[%clk 0:34:26]} 33. gxf6+  {[%clk 0:41:55]} Kxf6 {[%clk 0:34:55]} 34. fxe5+ {[%clk 0:42:19]} dxe5  {[%clk 0:35:21]} 35. Rf1+ {[%clk 0:42:45]} Kg7 {[%clk 0:35:35]} 36. Rg3+  {[%clk 0:42:49]} Kh8 {[%clk 0:36:00]} 37. Be4 {[%clk 0:43:12]} 1-0

[Event "SUNWAY"]
[Date "2016.12.17"]
[Round "3.9"]
[White "Garriga Cazorla, Pere"]
[Black "Vorobiov, Evgeny E."]
[Result "1/2-1/2"]
[WhiteElo "2386"]
[BlackElo "2583"]
[ECO "E38"]
[WhiteFed "ESP"]
[BlackFed "RUS"]
[FCGameId "73872951"]
[TimeControl "5400+30"]

1. d4 Nf6 2. c4 e6 3. Nc3 Bb4 4. Qc2 c5 5. dxc5 Qc7 6. Nf3 a6 7. e3 Bxc5 8. b3  b6 9. Bb2 Bb7 10. Be2 Be7 11. Rd1 d6 12. g4 h6 1/2-1/2

[Event "SUNWAY"]
[Date "2016.12.17"]
[Round "3.10"]
[White "Aroshidze, Levan"]
[Black "Michelakos, Panagiotis"]
[Result "1-0"]
[WhiteElo "2517"]
[BlackElo "2257"]
[ECO "B35"]
[WhiteFed "ESP"]
[BlackFed "GRE"]
[FCGameId "-985016139"]
[TimeControl "5400+30"]

1. e4 {[%clk 1:28:18]} c5 {[%clk 1:30:42]} 2. Nf3 {[%clk 1:28:41]} g6  {[%clk 1:30:21]} 3. d4 {[%clk 1:29:03]} cxd4 {[%clk 1:30:44]} 4. Nxd4  {[%clk 1:29:27]} Nc6 {[%clk 1:31:04]} 5. Nc3 {[%clk 1:29:48]} Bg7  {[%clk 1:31:20]} 6. Be3 {[%clk 1:30:10]} Nf6 {[%clk 1:31:32]} 7. Bc4  {[%clk 1:30:15]} O-O {[%clk 1:31:38]} 8. Bb3 {[%clk 1:30:39]} d5  {[%clk 1:30:30]} 9. exd5 {[%clk 1:30:25]} Na5 {[%clk 1:30:41]} 10. Qd2  {[%clk 1:29:39]} Nxb3 {[%clk 1:29:55]} 11. Nxb3 {[%clk 1:28:59]} b5  {[%clk 1:28:47]} 12. O-O-O {[%clk 1:25:07]} b4 {[%clk 1:23:24]} 13. Na4  {[%clk 1:25:04]} Bf5 {[%clk 1:22:05]} 14. f3 {[%clk 1:00:33]} h5  {[%clk 1:06:25]} 15. d6 exd6 {[%clk 0:58:55]} 16. Qxb4 {[%clk 0:50:38]} a5  {[%clk 0:22:34]} 17. Qh4 {[%clk 0:36:18]} Qc7 {[%clk 0:16:13]} 18. Nc3  {[%clk 0:13:49]} a4 {[%clk 0:11:15]} 19. Nd4 {[%clk 0:14:14]} Bd7  {[%clk 0:05:21]} 20. Bg5 {[%clk 0:11:21]} Nh7 {[%clk 0:05:18]} 21. Nd5  {[%clk 0:10:39]} Qc5 {[%clk 0:04:18]} 22. Nf6+ {[%clk 0:08:26]} Nxf6  {[%clk 0:04:42]} 23. Bxf6 {[%clk 0:08:53]} a3 {[%clk 0:04:12]} 24. b3  {[%clk 0:09:12]} Qc3 {[%clk 0:02:17]} 25. Bxg7 {[%clk 0:09:26]} Kxg7  {[%clk 0:02:22]} 26. Ne2 {[%clk 0:09:44]} Qb2+ {[%clk 0:01:37]} 27. Kd2  {[%clk 0:10:13]} Qe5 {[%clk 0:00:31]} 28. Qd4 {[%clk 0:10:20]} Kg8  {[%clk 0:00:52]} 29. Qxe5 {[%clk 0:09:11]} dxe5 30. c4 {[%clk 0:09:26]} Be6  {[%clk 0:00:36]} 31. Ke3 {[%clk 0:09:18]} f5 {[%clk 0:00:34]} 32. f4  {[%clk 0:06:22]} exf4+ {[%clk 0:00:46]} 33. Nxf4 {[%clk 0:06:46]} Bf7  {[%clk 0:01:06]} 34. h4 {[%clk 0:07:05]} Rfe8+ {[%clk 0:00:53]} 35. Kf3  {[%clk 0:06:53]} Rad8 {[%clk 0:00:41]} 36. Rhe1 {[%clk 0:05:39]} Rxe1  {[%clk 0:00:40]} 37. Rxd8+ {[%clk 0:06:05]} Kg7 {[%clk 0:01:05]} 38. Ra8  {[%clk 0:06:20]} Rf1+ {[%clk 0:01:11]} 39. Ke3 {[%clk 0:06:31]} Re1+  {[%clk 0:00:43]} 40. Kf2 {[%clk 0:35:59]} Rh1 {[%clk 0:31:08]} 41. Nh3 1-0

[Event "SUNWAY"]
[Date "2016.12.17"]
[Round "3.11"]
[White "Esplugas Esteve, Vicenc"]
[Black "Epishin, Vladimir"]
[Result "1-0"]
[WhiteElo "2280"]
[BlackElo "2571"]
[ECO "E32"]
[WhiteFed "ESP"]
[BlackFed "RUS"]
[FCGameId "-1062555132"]
[TimeControl "5400+30"]

1. d4 {[%clk 1:30:57]} Nf6 {[%clk 1:26:46]} 2. c4 {[%clk 1:31:23]} e6  {[%clk 1:26:26]} 3. Nc3 {[%clk 1:31:48]} Bb4 {[%clk 1:25:54]} 4. Qc2  {[%clk 1:32:13]} d6 {[%clk 1:25:36]} 5. Bg5 {[%clk 1:30:35]} Nbd7  {[%clk 1:24:47]} 6. Nf3 {[%clk 1:29:33]} h6 {[%clk 1:22:41]} 7. Bh4  {[%clk 1:28:59]} Qe7 {[%clk 1:20:25]} 8. e3 {[%clk 1:29:14]} b6 {[%clk 1:18:46]}  9. Be2 {[%clk 1:27:49]} Bb7 {[%clk 1:19:02]} 10. O-O {[%clk 1:25:58]} Bxc3  {[%clk 1:19:07]} 11. Qxc3 {[%clk 1:26:11]} g5 {[%clk 1:10:34]} 12. Bg3  {[%clk 1:26:36]} Ne4 {[%clk 1:10:59]} 13. Qc2 {[%clk 1:26:55]} h5 14. h4  {[%clk 1:20:09]} Rg8 {[%clk 0:59:21]} 15. b4 {[%clk 1:05:58]} Ndf6  {[%clk 0:56:18]} 16. Nxg5 {[%clk 1:01:31]} Nxg5 {[%clk 0:55:21]} 17. hxg5 Rxg5  {[%clk 0:54:34]} 18. d5 {[%clk 1:01:36]} exd5 {[%clk 0:53:05]} 19. Bh4  {[%clk 1:00:48]} Rg6 {[%clk 0:53:19]} 20. Bf3 {[%clk 1:00:37]} Qe6  {[%clk 0:53:29]} 21. Rfd1 {[%clk 0:58:24]} c6 {[%clk 0:53:30]} 22. cxd5 cxd5  {[%clk 0:53:48]} 23. Qc7 {[%clk 0:54:15]} Qd7 {[%clk 0:53:40]} 24. Qxd7+  {[%clk 0:53:34]} Nxd7 {[%clk 0:51:57]} 25. Bxd5 {[%clk 0:52:23]} Bxd5  {[%clk 0:52:25]} 26. Rxd5 {[%clk 0:52:48]} Rg4 {[%clk 0:52:32]} 27. Rxh5  {[%clk 0:52:27]} Rxb4 {[%clk 0:52:27]} 28. Rd1 {[%clk 0:51:40]} Nf8  {[%clk 0:52:44]} 29. Rxd6 {[%clk 0:50:28]} Rc8 {[%clk 0:52:39]} 30. Bf6  {[%clk 0:47:56]} Re4 {[%clk 0:51:51]} 31. Rhd5 1-0

[Event "SUNWAY"]
[Date "2016.12.17"]
[Round "3.12"]
[White "Iniyan, P"]
[Black "Kamsky, Gata"]
[Result "1/2-1/2"]
[WhiteElo "2363"]
[BlackElo "2661"]
[ECO "A88"]
[WhiteFed "IND"]
[BlackFed "USA"]
[FCGameId "1323651220"]
[TimeControl "5400+30"]

1. d4 {[%clk 1:30:55]} f5 {[%clk 1:30:42]} 2. c4 {[%clk 1:31:13]} Nf6  {[%clk 1:31:00]} 3. g3 {[%clk 1:31:39]} g6 {[%clk 1:31:24]} 4. Bg2  {[%clk 1:32:01]} Bg7 {[%clk 1:31:47]} 5. Nf3 {[%clk 1:32:27]} d6  {[%clk 1:31:51]} 6. O-O {[%clk 1:32:43]} O-O {[%clk 1:32:14]} 7. Nc3  {[%clk 1:33:06]} c6 8. Rb1 {[%clk 1:25:32]} a5 {[%clk 1:33:01]} 9. a3  {[%clk 1:25:15]} Ne4 {[%clk 1:33:10]} 10. Nxe4 {[%clk 1:12:13]} fxe4  {[%clk 1:33:30]} 11. Nd2 {[%clk 1:12:39]} d5 {[%clk 1:32:42]} 12. e3  {[%clk 1:13:04]} Kh8 {[%clk 1:25:12]} 13. b3 {[%clk 1:11:59]} Nd7  {[%clk 1:23:37]} 14. a4 {[%clk 1:03:41]} Nf6 {[%clk 1:19:51]} 15. Ba3  {[%clk 1:03:17]} Bg4 {[%clk 1:20:00]} 16. f3 {[%clk 1:00:53]} exf3  {[%clk 1:20:22]} 17. Nxf3 {[%clk 0:48:09]} Bh6 {[%clk 1:19:20]} 18. Qd2  {[%clk 0:48:08]} Bf5 {[%clk 1:12:13]} 19. Rbe1 {[%clk 0:45:45]} Qd7  {[%clk 1:12:28]} 20. Ne5 {[%clk 0:39:06]} Qe6 {[%clk 1:12:51]} 21. b4  {[%clk 0:30:20]} Ne4 {[%clk 1:06:53]} 22. Qb2 {[%clk 0:25:54]} Bh3  {[%clk 1:04:47]} 23. bxa5 {[%clk 0:12:58]} Rxf1+ {[%clk 1:02:56]} 24. Rxf1  {[%clk 0:12:57]} Bxe3+ {[%clk 1:03:01]} 25. Kh1 {[%clk 0:13:21]} Bxg2+  {[%clk 0:22:47]} 26. Kxg2 {[%clk 0:13:24]} Ng5 {[%clk 0:17:55]} 27. g4  {[%clk 0:13:04]} dxc4 {[%clk 0:16:10]} 28. Qxb7 {[%clk 0:13:01]} Qd5+  {[%clk 0:16:24]} 29. Kg3 {[%clk 0:13:16]} Ne4+ {[%clk 0:16:24]} 30. Kh3 1/2-1/2

[Event "SUNWAY"]
[Date "2016.12.17"]
[Round "3.13"]
[White "Vocaturo, Daniele"]
[Black "Nihal Sarin"]
[Result "1-0"]
[WhiteElo "2606"]
[BlackElo "2340"]
[ECO "E21"]
[WhiteFed "ITA"]
[BlackFed "IND"]
[FCGameId "-896516144"]
[TimeControl "5400+30"]

1. d4 Nf6 {[%clk 1:30:51]} 2. c4 {[%clk 1:30:46]} e6 {[%clk 1:31:16]} 3. Nc3  {[%clk 1:30:36]} Bb4 {[%clk 1:31:38]} 4. Nf3 {[%clk 1:30:37]} O-O  {[%clk 1:30:39]} 5. Bg5 {[%clk 1:30:16]} c5 {[%clk 1:29:06]} 6. e3  {[%clk 1:29:39]} h6 {[%clk 1:22:01]} 7. Bh4 {[%clk 1:29:05]} d6 8. Bd3  {[%clk 1:26:08]} Nbd7 {[%clk 1:21:24]} 9. O-O {[%clk 1:21:44]} cxd4  {[%clk 1:21:28]} 10. exd4 {[%clk 1:19:29]} Bxc3 {[%clk 1:21:45]} 11. bxc3  {[%clk 1:19:53]} Qc7 {[%clk 1:22:27]} 12. Nd2 {[%clk 1:14:46]} b6  {[%clk 1:12:25]} 13. a4 {[%clk 1:12:58]} Bb7 {[%clk 0:54:56]} 14. a5  {[%clk 1:12:20]} Rac8 {[%clk 0:54:28]} 15. Re1 {[%clk 1:08:11]} Rfe8  {[%clk 0:54:02]} 16. Bg3 {[%clk 1:06:53]} g6 {[%clk 0:36:50]} 17. h3  {[%clk 1:05:52]} e5 {[%clk 0:37:01]} 18. Bf1 Nh5 {[%clk 0:30:04]} 19. Bh2  {[%clk 1:01:05]} Ng7 {[%clk 0:29:05]} 20. axb6 {[%clk 0:49:45]} axb6  {[%clk 0:29:08]} 21. Nb1 {[%clk 0:46:00]} Nf5 {[%clk 0:24:59]} 22. Na3  {[%clk 0:46:01]} Bc6 {[%clk 0:24:14]} 23. Nc2 {[%clk 0:45:58]} Ra8  {[%clk 0:21:27]} 24. Qd2 {[%clk 0:38:56]} Rxa1 {[%clk 0:19:54]} 25. Rxa1  {[%clk 0:39:22]} Kh7 {[%clk 0:19:40]} 26. Bd3 {[%clk 0:34:03]} Nh4  {[%clk 0:10:04]} 27. Bg3 {[%clk 0:31:28]} e4 {[%clk 0:07:47]} 28. Bxh4  {[%clk 0:29:55]} exd3 {[%clk 0:08:15]} 29. Ne3 {[%clk 0:29:50]} Be4  {[%clk 0:05:04]} 30. f3 {[%clk 0:29:28]} Bc6 {[%clk 0:04:58]} 31. Ng4  {[%clk 0:28:18]} g5 32. Qxd3+ {[%clk 0:28:39]} Kg7 {[%clk 0:04:24]} 33. Bg3  {[%clk 0:28:54]} Nf6 {[%clk 0:04:30]} 34. Nxf6 {[%clk 0:27:43]} Kxf6  {[%clk 0:04:54]} 35. Qh7 {[%clk 0:28:04]} 1-0